[Event "Titled Tuesday Blitz November 15 Early 2022"]
[White "Ristic, Nebojsa B"]
[Black "Devaev, Alexander"]
[WhiteFideId "935468"]
[BlackFideId "4169395"]
[WhiteElo "2320"]
[BlackElo "2225"]
[Result "0-1"]
[Round "11"]
[TimeControl "180+1"]
[Date "2022.11.16"]
[WhiteClock "0:00:31"]
[BlackClock "0:00:29"]

1. d4 {[%clk 0:03:00]}  Nf6 {[%clk 0:02:59]} 2. Bf4 {[%clk 0:03:00]}  d5 {[%clk 0:02:53]} 3. e3 {[%clk 0:03:00]}  a6 {[%clk 0:02:53]} 4. c4 {[%clk 0:02:52]}  e6 {[%clk 0:02:50]} 5. Nc3 {[%clk 0:02:51]}  Bd6 {[%clk 0:02:39]} 6. Bg3 {[%clk 0:02:50]}  O-O {[%clk 0:02:38]} 7. Nf3 {[%clk 0:02:49]}  c6 {[%clk 0:02:25]} 8. c5 {[%clk 0:02:37]}  Bxg3 {[%clk 0:02:20]} 9. hxg3 {[%clk 0:02:38]}  Nbd7 {[%clk 0:02:19]} 10. b4 {[%clk 0:02:35]}  Qe7 {[%clk 0:02:19]} 11. Ne5 {[%clk 0:02:34]}  Nxe5 {[%clk 0:02:17]} 12. dxe5 {[%clk 0:02:35]}  Nd7 {[%clk 0:02:18]} 13. Bd3 {[%clk 0:02:29]}  g6 {[%clk 0:02:16]} 14. f4 {[%clk 0:02:26]}  f6 {[%clk 0:02:15]} 15. Qg4 {[%clk 0:02:00]}  fxe5 {[%clk 0:01:59]} 16. Bxg6 {[%clk 0:01:59]}  hxg6 {[%clk 0:01:59]} 17. Qxg6+ {[%clk 0:01:55]}  Qg7 {[%clk 0:01:59]} 18. Qxe6+ {[%clk 0:01:55]}  Rf7 {[%clk 0:01:59]} 19. Kd2 {[%clk 0:01:33]}  exf4 {[%clk 0:01:50]} 20. Rh4 {[%clk 0:01:19]}  Nf8 {[%clk 0:01:50]} 21. Qe8 {[%clk 0:01:16]}  fxe3+ {[%clk 0:01:40]} 22. Kc1 {[%clk 0:01:07]}  Rf1+ {[%clk 0:01:34]} 23. Kb2 {[%clk 0:01:05]}  Rxa1 {[%clk 0:01:34]} 24. Qxe3 {[%clk 0:00:53]}  Rf1 {[%clk 0:01:09]} 25. Rh5 {[%clk 0:00:50]}  Rf5 {[%clk 0:01:04]} 26. g4 {[%clk 0:00:49]}  Rxh5 {[%clk 0:01:04]} 27. gxh5 {[%clk 0:00:50]}  Bd7 {[%clk 0:01:00]} 28. Ka3 {[%clk 0:00:49]}  d4 {[%clk 0:00:58]} 29. Qf4 {[%clk 0:00:44]}  Ne6 {[%clk 0:00:47]} 30. Qd6 {[%clk 0:00:43]}  dxc3 {[%clk 0:00:45]} 31. h6 {[%clk 0:00:43]}  Qxh6 {[%clk 0:00:31]} 32. Qxd7 {[%clk 0:00:42]}  Rd8 {[%clk 0:00:32]} 33. Qe7 {[%clk 0:00:41]}  c2 {[%clk 0:00:31]} 34. Ka4 {[%clk 0:00:38]}  c1=Q {[%clk 0:00:31]} 35. Qxe6+ {[%clk 0:00:31]}  Qxe6 {[%clk 0:00:29]} 0-1


[Site "https://www.chess.com"]

[Event "Titled Tuesday Blitz November 15 Early 2022"]
[White "Rodriguez Fontecha, Marcos"]
[Black "Szpar, Milosz"]
[WhiteFideId "2256576"]
[BlackFideId "1184989"]
[WhiteElo "2263"]
[BlackElo "2422"]
[Result "1-0"]
[Round "11"]
[TimeControl "180+1"]
[Date "2022.11.16"]
[WhiteClock "0:00:07"]
[BlackClock "0:00:14"]

1. Nf3 {[%clk 0:03:00]}  c5 {[%clk 0:02:59]} 2. d4 {[%clk 0:03:00]}  cxd4 {[%clk 0:02:59]} 3. Qxd4 {[%clk 0:03:01]}  Nc6 {[%clk 0:02:59]} 4. Qh4 {[%clk 0:03:01]}  Nf6 {[%clk 0:02:58]} 5. Nc3 {[%clk 0:03:01]}  d5 {[%clk 0:02:53]} 6. Bg5 {[%clk 0:03:01]}  e6 {[%clk 0:02:53]} 7. O-O-O {[%clk 0:03:01]}  Bb4 {[%clk 0:02:48]} 8. Rd3 {[%clk 0:02:28]}  O-O {[%clk 0:02:39]} 9. e4 {[%clk 0:02:26]}  Bxc3 {[%clk 0:02:39]} 10. Rxc3 {[%clk 0:02:09]}  dxe4 {[%clk 0:02:38]} 11. Bxf6 {[%clk 0:02:06]}  Qxf6 {[%clk 0:02:30]} 12. Qxe4 {[%clk 0:01:58]}  e5 {[%clk 0:02:26]} 13. Bd3 {[%clk 0:01:57]}  Qh6+ {[%clk 0:02:26]} 14. Kb1 {[%clk 0:01:55]}  f5 {[%clk 0:02:26]} 15. Qe3 {[%clk 0:01:39]}  Qxe3 {[%clk 0:02:22]} 16. fxe3 {[%clk 0:01:40]}  e4 {[%clk 0:02:11]} 17. Bc4+ {[%clk 0:01:40]}  Kh8 {[%clk 0:02:11]} 18. Ng5 {[%clk 0:01:38]}  Ne5 {[%clk 0:02:11]} 19. Bb3 {[%clk 0:01:38]}  h6 {[%clk 0:02:10]} 20. Nh3 {[%clk 0:01:35]}  Bd7 {[%clk 0:02:07]} 21. Rd1 {[%clk 0:01:34]}  Rad8 {[%clk 0:01:32]} 22. Rd4 {[%clk 0:01:10]}  Bc6 {[%clk 0:01:28]} 23. Nf4 {[%clk 0:01:10]}  Rxd4 {[%clk 0:01:07]} 24. exd4 {[%clk 0:01:11]}  Rd8 {[%clk 0:01:07]} 25. Rc5 {[%clk 0:01:09]}  Ng4 {[%clk 0:00:55]} 26. c3 {[%clk 0:01:01]}  Ne3 {[%clk 0:00:52]} 27. Kc1 {[%clk 0:00:52]}  g5 {[%clk 0:00:50]} 28. Ne6 {[%clk 0:00:49]}  Rd6 {[%clk 0:00:49]} 29. Kd2 {[%clk 0:00:46]}  Nxg2 {[%clk 0:00:49]} 30. Rxf5 {[%clk 0:00:44]}  Kh7 {[%clk 0:00:23]} 31. Rf6 {[%clk 0:00:40]}  e3+ {[%clk 0:00:20]} 32. Ke2 {[%clk 0:00:37]}  Bb5+ {[%clk 0:00:19]} 33. c4 {[%clk 0:00:37]}  Rxe6 {[%clk 0:00:20]} 34. Rxe6 {[%clk 0:00:30]}  Nf4+ {[%clk 0:00:18]} 35. Kxe3 {[%clk 0:00:30]}  Nxe6 {[%clk 0:00:19]} 36. cxb5 {[%clk 0:00:30]}  Nc7 {[%clk 0:00:19]} 37. Ke4 {[%clk 0:00:27]}  Nxb5 {[%clk 0:00:19]} 38. Ke5 {[%clk 0:00:27]}  Kg7 {[%clk 0:00:19]} 39. a4 {[%clk 0:00:22]}  Nc7 {[%clk 0:00:19]} 40. Kd6 {[%clk 0:00:22]}  Ne8+ {[%clk 0:00:16]} 41. Ke7 {[%clk 0:00:22]}  Nf6 {[%clk 0:00:17]} 42. d5 {[%clk 0:00:23]}  Ng8+ {[%clk 0:00:14]} 43. Ke6 {[%clk 0:00:22]}  Kf8 {[%clk 0:00:13]} 44. d6 {[%clk 0:00:20]}  Ke8 {[%clk 0:00:13]} 45. Bd5 {[%clk 0:00:19]}  h5 {[%clk 0:00:09]} 46. Bxb7 {[%clk 0:00:19]}  g4 {[%clk 0:00:09]} 47. Bc6+ {[%clk 0:00:19]}  Kd8 {[%clk 0:00:09]} 48. Kf7 {[%clk 0:00:18]}  Nh6+ {[%clk 0:00:10]} 49. Kg6 {[%clk 0:00:19]}  Ng8 {[%clk 0:00:11]} 50. Kg7 {[%clk 0:00:17]}  h4 {[%clk 0:00:10]} 51. Kxg8 {[%clk 0:00:16]}  g3 {[%clk 0:00:10]} 52. hxg3 {[%clk 0:00:17]}  hxg3 {[%clk 0:00:11]} 53. Kf7 {[%clk 0:00:17]}  g2 {[%clk 0:00:10]} 54. Bxg2 {[%clk 0:00:17]}  Kd7 {[%clk 0:00:11]} 55. b4 {[%clk 0:00:14]}  Kxd6 {[%clk 0:00:12]} 56. Kf6 {[%clk 0:00:13]}  a5 {[%clk 0:00:11]} 57. b5 {[%clk 0:00:11]}  Kc5 {[%clk 0:00:11]} 58. Ke5 {[%clk 0:00:10]}  Kb4 {[%clk 0:00:11]} 59. b6 {[%clk 0:00:10]}  Kxa4 {[%clk 0:00:11]} 60. b7 {[%clk 0:00:11]}  Ka3 {[%clk 0:00:12]} 61. b8=Q {[%clk 0:00:12]}  a4 {[%clk 0:00:13]} 62. Qd6+ {[%clk 0:00:11]}  Ka2 {[%clk 0:00:13]} 63. Qd2+ {[%clk 0:00:10]}  Ka1 {[%clk 0:00:13]} 64. Bd5 {[%clk 0:00:07]}  a3 {[%clk 0:00:14]} 65. Qa2# {[%clk 0:00:07]} 1-0


[Site "https://www.chess.com"]

[Event "Titled Tuesday Blitz November 15 Early 2022"]
[White "Sadubayev, Airat"]
[Black "Pg, Mohd Omar Ak Hira"]
[WhiteFideId "13713264"]
[BlackFideId "10500103"]
[WhiteElo "2160"]
[BlackElo "2184"]
[Result "1-0"]
[Round "11"]
[TimeControl "180+1"]
[Date "2022.11.16"]
[WhiteClock "0:01:04"]
[BlackClock "0:00:12"]

1. d4 {[%clk 0:02:59]}  Nf6 {[%clk 0:02:57]} 2. c4 {[%clk 0:03:00]}  g6 {[%clk 0:02:57]} 3. Nc3 {[%clk 0:03:00]}  d5 {[%clk 0:02:58]} 4. cxd5 {[%clk 0:03:00]}  Nxd5 {[%clk 0:02:58]} 5. e4 {[%clk 0:03:01]}  Nxc3 {[%clk 0:02:59]} 6. bxc3 {[%clk 0:03:02]}  Bg7 {[%clk 0:03:00]} 7. Nf3 {[%clk 0:03:03]}  c5 {[%clk 0:03:00]} 8. Be3 {[%clk 0:03:03]}  O-O {[%clk 0:03:01]} 9. Rc1 {[%clk 0:02:56]}  Qa5 {[%clk 0:02:58]} 10. Qd2 {[%clk 0:02:53]}  Rd8 {[%clk 0:02:57]} 11. d5 {[%clk 0:02:51]}  Bg4 {[%clk 0:02:45]} 12. c4 {[%clk 0:02:50]}  Qxd2+ {[%clk 0:02:25]} 13. Nxd2 {[%clk 0:02:50]}  Na6 {[%clk 0:02:17]} 14. Be2 {[%clk 0:02:48]}  Bxe2 {[%clk 0:02:16]} 15. Kxe2 {[%clk 0:02:49]}  b6 {[%clk 0:02:13]} 16. f4 {[%clk 0:02:46]}  e6 {[%clk 0:02:11]} 17. dxe6 {[%clk 0:02:45]}  fxe6 {[%clk 0:02:11]} 18. e5 {[%clk 0:02:45]}  Nb4 {[%clk 0:02:02]} 19. a3 {[%clk 0:02:41]}  Nc6 {[%clk 0:02:02]} 20. Ne4 {[%clk 0:02:40]}  Nd4+ {[%clk 0:01:52]} 21. Ke1 {[%clk 0:02:31]}  Nf5 {[%clk 0:01:27]} 22. Ke2 {[%clk 0:02:27]}  Nd4+ {[%clk 0:01:26]} 23. Kf2 {[%clk 0:02:02]}  Nf5 {[%clk 0:01:26]} 24. Rhd1 {[%clk 0:02:01]}  h6 {[%clk 0:01:17]} 25. Ke2 {[%clk 0:01:41]}  g5 {[%clk 0:01:12]} 26. g3 {[%clk 0:01:41]}  g4 {[%clk 0:01:07]} 27. Bf2 {[%clk 0:01:39]}  Kf7 {[%clk 0:01:00]} 28. a4 {[%clk 0:01:34]}  h5 {[%clk 0:00:54]} 29. a5 {[%clk 0:01:32]}  Bh6 {[%clk 0:00:49]} 30. Rb1 {[%clk 0:01:29]}  Ke7 {[%clk 0:00:30]} 31. Rxd8 {[%clk 0:01:26]}  Rxd8 {[%clk 0:00:26]} 32. axb6 {[%clk 0:01:26]}  axb6 {[%clk 0:00:26]} 33. Rxb6 {[%clk 0:01:26]}  Nd4+ {[%clk 0:00:22]} 34. Bxd4 {[%clk 0:01:25]}  Rxd4 {[%clk 0:00:22]} 35. Nd6 {[%clk 0:01:25]}  h4 {[%clk 0:00:23]} 36. Rb7+ {[%clk 0:01:22]}  Kf8 {[%clk 0:00:20]} 37. Rh7 {[%clk 0:01:16]}  Bg7 {[%clk 0:00:20]} 38. Rxh4 {[%clk 0:01:16]}  Kg8 {[%clk 0:00:17]} 39. Rxg4 {[%clk 0:01:16]}  Kh7 {[%clk 0:00:17]} 40. Ne8 {[%clk 0:01:06]}  Bf8 {[%clk 0:00:15]} 41. Nf6+ {[%clk 0:01:06]}  Kh6 {[%clk 0:00:15]} 42. Rg8 {[%clk 0:01:07]}  Be7 {[%clk 0:00:14]} 43. Re8 {[%clk 0:01:03]}  Bxf6 {[%clk 0:00:13]} 44. Rxe6 {[%clk 0:01:03]}  Kg7 {[%clk 0:00:13]} 45. Rxf6 {[%clk 0:01:03]}  Rxc4 {[%clk 0:00:14]} 46. Kf3 {[%clk 0:01:03]}  Rc2 {[%clk 0:00:13]} 47. h4 {[%clk 0:01:03]}  c4 {[%clk 0:00:14]} 48. Kg4 {[%clk 0:01:03]}  Ra2 {[%clk 0:00:13]} 49. Rc6 {[%clk 0:01:04]}  Ra4 {[%clk 0:00:13]} 50. h5 {[%clk 0:01:04]}  Rb4 {[%clk 0:00:12]} 51. Kg5 {[%clk 0:01:04]} 1-0


[Site "https://www.chess.com"]

[Event "Titled Tuesday Blitz November 15 Early 2022"]
[White "Seemann, Jakub"]
[Black "Rohith Krishna S"]
[WhiteFideId "21874697"]
[BlackFideId "46617051"]
[WhiteElo "2576"]
[BlackElo "2713"]
[Result "1-0"]
[Round "11"]
[TimeControl "180+1"]
[Date "2022.11.16"]
[WhiteClock "0:00:07"]
[BlackClock "0:00:06"]

1. d4 {[%clk 0:02:59]}  Nf6 {[%clk 0:02:05]} 2. c4 {[%clk 0:02:59]}  e6 {[%clk 0:02:05]} 3. Nf3 {[%clk 0:02:59]}  d5 {[%clk 0:02:05]} 4. g3 {[%clk 0:02:59]}  Be7 {[%clk 0:02:06]} 5. Bg2 {[%clk 0:02:59]}  O-O {[%clk 0:02:06]} 6. Qc2 {[%clk 0:03:00]}  Nc6 {[%clk 0:02:03]} 7. O-O {[%clk 0:02:59]}  a5 {[%clk 0:02:03]} 8. a3 {[%clk 0:02:57]}  a4 {[%clk 0:02:03]} 9. Rd1 {[%clk 0:02:57]}  dxc4 {[%clk 0:02:02]} 10. Qxc4 {[%clk 0:02:51]}  Bd7 {[%clk 0:02:01]} 11. Qc2 {[%clk 0:02:51]}  Na5 {[%clk 0:02:01]} 12. Nbd2 {[%clk 0:02:51]}  Qc8 {[%clk 0:01:58]} 13. Ne5 {[%clk 0:02:50]}  Rd8 {[%clk 0:01:57]} 14. e3 {[%clk 0:02:46]}  Be8 {[%clk 0:01:53]} 15. Rb1 {[%clk 0:02:41]}  Nd7 {[%clk 0:01:52]} 16. Nxd7 {[%clk 0:02:40]}  Qxd7 {[%clk 0:01:50]} 17. Ne4 {[%clk 0:02:41]}  Nb3 {[%clk 0:01:48]} 18. Bd2 {[%clk 0:02:37]}  Rac8 {[%clk 0:01:29]} 19. Bb4 {[%clk 0:02:35]}  Bxb4 {[%clk 0:01:28]} 20. axb4 {[%clk 0:02:36]}  Qe7 {[%clk 0:01:28]} 21. Qc3 {[%clk 0:02:35]}  b6 {[%clk 0:01:27]} 22. h4 {[%clk 0:02:27]}  h6 {[%clk 0:01:16]} 23. Bf1 {[%clk 0:02:25]}  f5 {[%clk 0:01:12]} 24. Nd2 {[%clk 0:02:21]}  Nxd2 {[%clk 0:01:13]} 25. Rxd2 {[%clk 0:02:19]}  c5 {[%clk 0:01:12]} 26. bxc5 {[%clk 0:02:11]}  bxc5 {[%clk 0:01:12]} 27. Qa3 {[%clk 0:01:59]}  Kf8 {[%clk 0:01:08]} 28. Bc4 {[%clk 0:01:36]}  cxd4 {[%clk 0:00:51]} 29. Bxe6 {[%clk 0:01:36]}  dxe3 {[%clk 0:00:52]} 30. Rxd8 {[%clk 0:01:02]}  exf2+ {[%clk 0:00:47]} 31. Kxf2 {[%clk 0:01:01]}  Rxd8 {[%clk 0:00:47]} 32. Bxf5 {[%clk 0:00:56]}  Rb8 {[%clk 0:00:42]} 33. Qf3 {[%clk 0:00:38]}  Qf6 {[%clk 0:00:38]} 34. Bc2 {[%clk 0:00:22]}  Qxf3+ {[%clk 0:00:37]} 35. Kxf3 {[%clk 0:00:23]}  Rb4 {[%clk 0:00:37]} 36. Ra1 {[%clk 0:00:19]}  Bc6+ {[%clk 0:00:34]} 37. Ke3 {[%clk 0:00:18]}  Rg4 {[%clk 0:00:31]} 38. Kf2 {[%clk 0:00:18]}  Rc4 {[%clk 0:00:32]} 39. Bd1 {[%clk 0:00:17]}  Rb4 {[%clk 0:00:32]} 40. Ke3 {[%clk 0:00:16]}  Ke7 {[%clk 0:00:30]} 41. Kd3 {[%clk 0:00:15]}  Bb5+ {[%clk 0:00:27]} 42. Kc3 {[%clk 0:00:14]}  Rc4+ {[%clk 0:00:28]} 43. Kd2 {[%clk 0:00:15]}  Rd4+ {[%clk 0:00:27]} 44. Kc3 {[%clk 0:00:15]}  Rc4+ {[%clk 0:00:27]} 45. Kd2 {[%clk 0:00:15]}  Rd4+ {[%clk 0:00:22]} 46. Kc3 {[%clk 0:00:14]}  Rd3+ {[%clk 0:00:22]} 47. Kb4 {[%clk 0:00:14]}  Bd7 {[%clk 0:00:17]} 48. g4 {[%clk 0:00:08]}  Rd4+ {[%clk 0:00:15]} 49. Kc5 {[%clk 0:00:08]}  Rf4 {[%clk 0:00:15]} 50. Ra3 {[%clk 0:00:05]}  Bxg4 {[%clk 0:00:14]} 51. Bxa4 {[%clk 0:00:04]}  Be6 {[%clk 0:00:14]} 52. Kb6 {[%clk 0:00:04]}  Rxh4 {[%clk 0:00:14]} 53. Kc5 {[%clk 0:00:03]}  Kf6 {[%clk 0:00:14]} 54. b4 {[%clk 0:00:03]}  Rc4+ {[%clk 0:00:13]} 55. Kb5 {[%clk 0:00:02]}  Rf4 {[%clk 0:00:13]} 56. Rc3 {[%clk 0:00:02]}  g5 {[%clk 0:00:13]} 57. Ka5 {[%clk 0:00:03]}  g4 {[%clk 0:00:13]} 58. Bc6 {[%clk 0:00:03]}  h5 {[%clk 0:00:13]} 59. b5 {[%clk 0:00:04]}  Rf1 {[%clk 0:00:13]} 60. b6 {[%clk 0:00:04]}  Ra1+ {[%clk 0:00:13]} 61. Ba4 {[%clk 0:00:04]}  Bd7 {[%clk 0:00:13]} 62. Rc4 {[%clk 0:00:04]}  Be6 {[%clk 0:00:10]} 63. b7 {[%clk 0:00:04]}  Bxc4 {[%clk 0:00:10]} 64. b8=Q {[%clk 0:00:04]}  Re1 {[%clk 0:00:09]} 65. Qf4+ {[%clk 0:00:04]}  Kg6 {[%clk 0:00:08]} 66. Qxc4 {[%clk 0:00:05]}  Re5+ {[%clk 0:00:08]} 67. Kb6 {[%clk 0:00:05]}  Kf5 {[%clk 0:00:08]} 68. Qd3+ {[%clk 0:00:05]}  Kf4 {[%clk 0:00:07]} 69. Bc6 {[%clk 0:00:06]}  Rf5 {[%clk 0:00:03]} 70. Qd4+ {[%clk 0:00:06]}  Kg5 {[%clk 0:00:04]} 71. Qg7+ {[%clk 0:00:06]}  Kf4 {[%clk 0:00:04]} 72. Bd7 {[%clk 0:00:06]}  Rg5 {[%clk 0:00:04]} 73. Qf6+ {[%clk 0:00:06]}  Kg3 {[%clk 0:00:05]} 74. Qxg5 {[%clk 0:00:06]}  h4 {[%clk 0:00:05]} 75. Qxg4+ {[%clk 0:00:07]}  Kf2 {[%clk 0:00:06]} 76. Qxh4+ {[%clk 0:00:07]} 1-0


[Site "https://www.chess.com"]

[Event "Titled Tuesday Blitz November 15 Early 2022"]
[White "Seifert, Henryk"]
[Black "Kopacz, Grzegorz"]
[WhiteFideId "1100963"]
[BlackFideId "1109880"]
[WhiteElo "2120"]
[BlackElo "2037"]
[Result "0-1"]
[Round "11"]
[TimeControl "180+1"]
[Date "2022.11.16"]
[WhiteClock "0:00:10"]
[BlackClock "0:01:54"]

1. e4 {[%clk 0:03:00]}  c5 {[%clk 0:02:56]} 2. Nf3 {[%clk 0:03:00]}  g6 {[%clk 0:02:56]} 3. c3 {[%clk 0:02:59]}  Bg7 {[%clk 0:02:55]} 4. d4 {[%clk 0:03:00]}  cxd4 {[%clk 0:02:55]} 5. cxd4 {[%clk 0:03:00]}  d5 {[%clk 0:02:56]} 6. e5 {[%clk 0:02:59]}  Nc6 {[%clk 0:02:55]} 7. h3 {[%clk 0:02:54]}  e6 {[%clk 0:02:53]} 8. Nc3 {[%clk 0:02:53]}  Nge7 {[%clk 0:02:53]} 9. Bd3 {[%clk 0:02:46]}  O-O {[%clk 0:02:53]} 10. O-O {[%clk 0:02:42]}  a6 {[%clk 0:02:50]} 11. a3 {[%clk 0:02:41]}  b5 {[%clk 0:02:49]} 12. b4 {[%clk 0:02:40]}  Qb6 {[%clk 0:02:45]} 13. Be3 {[%clk 0:02:23]}  Bb7 {[%clk 0:02:39]} 14. Rc1 {[%clk 0:02:16]}  Rfc8 {[%clk 0:02:36]} 15. Qd2 {[%clk 0:02:16]}  Na7 {[%clk 0:02:32]} 16. g4 {[%clk 0:02:09]}  a5 {[%clk 0:02:32]} 17. Bh6 {[%clk 0:02:05]}  axb4 {[%clk 0:02:30]} 18. axb4 {[%clk 0:02:05]}  Nac6 {[%clk 0:02:29]} 19. Bxg7 {[%clk 0:02:01]}  Kxg7 {[%clk 0:02:29]} 20. Ne2 {[%clk 0:02:01]}  Ra4 {[%clk 0:02:26]} 21. Rb1 {[%clk 0:01:55]}  Qa7 {[%clk 0:02:25]} 22. Qg5 {[%clk 0:01:51]}  h6 {[%clk 0:02:23]} 23. Qf6+ {[%clk 0:01:51]}  Kg8 {[%clk 0:02:15]} 24. Nf4 {[%clk 0:01:49]}  Nxd4 {[%clk 0:02:06]} 25. Nxd4 {[%clk 0:01:38]}  Qxd4 {[%clk 0:02:07]} 26. Qxe7 {[%clk 0:01:30]}  Qxf4 {[%clk 0:02:03]} 27. Qxb7 {[%clk 0:01:25]}  Rc3 {[%clk 0:02:04]} 28. Qxb5 {[%clk 0:01:14]}  Raa3 {[%clk 0:02:02]} 29. Be2 {[%clk 0:00:37]}  Rxh3 {[%clk 0:01:58]} 30. Qe8+ {[%clk 0:00:31]}  Kg7 {[%clk 0:01:56]} 31. Qe7 {[%clk 0:00:10]}  Qh2# {[%clk 0:01:54]} 0-1


[Site "https://www.chess.com"]

[Event "Titled Tuesday Blitz November 15 Early 2022"]
[White "Shapiro, Daniel"]
[Black "Petrovic, Aleksa"]
[WhiteFideId "2001780"]
[BlackFideId "967629"]
[WhiteElo "2323"]
[BlackElo "2224"]
[Result "0-1"]
[Round "11"]
[TimeControl "180+1"]
[Date "2022.11.16"]
[WhiteClock "0:00:02"]
[BlackClock "0:00:13"]

1. d4 {[%clk 0:03:00]}  Nf6 {[%clk 0:02:59]} 2. c4 {[%clk 0:03:01]}  e6 {[%clk 0:03:00]} 3. g3 {[%clk 0:03:00]}  d5 {[%clk 0:02:59]} 4. Nf3 {[%clk 0:03:00]}  Bb4+ {[%clk 0:02:58]} 5. Bd2 {[%clk 0:02:58]}  Be7 {[%clk 0:02:58]} 6. Qc2 {[%clk 0:02:57]}  O-O {[%clk 0:02:57]} 7. Bg2 {[%clk 0:02:57]}  c6 {[%clk 0:02:55]} 8. O-O {[%clk 0:02:56]}  b5 {[%clk 0:02:55]} 9. b3 {[%clk 0:02:54]}  Nbd7 {[%clk 0:02:53]} 10. Bc3 {[%clk 0:02:50]}  Nb6 {[%clk 0:02:47]} 11. Nbd2 {[%clk 0:02:48]}  Ba6 {[%clk 0:02:45]} 12. Ne5 {[%clk 0:02:45]}  Rc8 {[%clk 0:02:44]} 13. c5 {[%clk 0:02:40]}  Nbd7 {[%clk 0:02:38]} 14. Ndf3 {[%clk 0:02:27]}  Nxe5 {[%clk 0:02:34]} 15. Nxe5 {[%clk 0:02:27]}  Nd7 {[%clk 0:02:35]} 16. Nd3 {[%clk 0:02:22]}  Qc7 {[%clk 0:02:18]} 17. a4 {[%clk 0:02:21]}  Rce8 {[%clk 0:02:13]} 18. f4 {[%clk 0:02:00]}  f5 {[%clk 0:02:03]} 19. Nb4 {[%clk 0:01:59]}  Bc8 {[%clk 0:01:46]} 20. axb5 {[%clk 0:01:54]}  cxb5 {[%clk 0:01:46]} 21. Nd3 {[%clk 0:01:43]}  Nb8 {[%clk 0:01:40]} 22. b4 {[%clk 0:01:32]}  Nc6 {[%clk 0:01:38]} 23. Ra3 {[%clk 0:01:24]}  Bf6 {[%clk 0:01:37]} 24. e3 {[%clk 0:01:23]}  g5 {[%clk 0:01:36]} 25. Rfa1 {[%clk 0:01:22]}  g4 {[%clk 0:01:36]} 26. Bf1 {[%clk 0:01:20]}  h5 {[%clk 0:01:34]} 27. Ne5 {[%clk 0:01:20]}  a6 {[%clk 0:01:31]} 28. Be1 {[%clk 0:01:01]}  Nxe5 {[%clk 0:01:29]} 29. dxe5 {[%clk 0:00:56]}  Bd8 {[%clk 0:01:28]} 30. Bc3 {[%clk 0:00:49]}  Qc6 {[%clk 0:01:27]} 31. Bd4 {[%clk 0:00:49]}  Kf7 {[%clk 0:01:26]} 32. Bg2 {[%clk 0:00:48]}  h4 {[%clk 0:01:24]} 33. Kf2 {[%clk 0:00:49]}  Rh8 {[%clk 0:01:22]} 34. Rh1 {[%clk 0:00:45]}  Rh5 {[%clk 0:01:22]} 35. Raa1 {[%clk 0:00:43]}  Reh8 {[%clk 0:01:23]} 36. Qa2 {[%clk 0:00:36]}  Ke7 {[%clk 0:01:09]} 37. Rag1 {[%clk 0:00:35]}  Kd7 {[%clk 0:01:07]} 38. Ke2 {[%clk 0:00:34]}  Kc7 {[%clk 0:01:03]} 39. Kd3 {[%clk 0:00:33]}  Qe8 {[%clk 0:00:58]} 40. Qf2 {[%clk 0:00:29]}  Kc6 {[%clk 0:00:57]} 41. Qe1 {[%clk 0:00:23]}  R8h6 {[%clk 0:00:56]} 42. Qd1 {[%clk 0:00:20]}  Qh8 {[%clk 0:00:56]} 43. Qe1 {[%clk 0:00:19]}  Qh7 {[%clk 0:00:40]} 44. Qd1 {[%clk 0:00:18]}  a5 {[%clk 0:00:36]} 45. bxa5 {[%clk 0:00:18]}  Ba6 {[%clk 0:00:37]} 46. Qe1 {[%clk 0:00:16]}  b4+ {[%clk 0:00:35]} 47. Kc2 {[%clk 0:00:16]}  Bxa5 {[%clk 0:00:28]} 48. Qa1 {[%clk 0:00:15]}  Qc7 {[%clk 0:00:28]} 49. Qa4+ {[%clk 0:00:14]}  Bb5 {[%clk 0:00:28]} 50. Qa2 {[%clk 0:00:14]}  hxg3 {[%clk 0:00:22]} 51. hxg3 {[%clk 0:00:13]}  Rh2 {[%clk 0:00:22]} 52. Rxh2 {[%clk 0:00:09]}  Rxh2 {[%clk 0:00:23]} 53. Kb1 {[%clk 0:00:08]}  Qb7 {[%clk 0:00:21]} 54. Rh1 {[%clk 0:00:08]}  Rxh1+ {[%clk 0:00:20]} 55. Bxh1 {[%clk 0:00:07]}  Bd3+ {[%clk 0:00:20]} 56. Kc1 {[%clk 0:00:07]}  Qb5 {[%clk 0:00:18]} 57. Bg2 {[%clk 0:00:06]}  b3 {[%clk 0:00:18]} 58. Qb2 {[%clk 0:00:04]}  Qc4+ {[%clk 0:00:18]} 59. Kd1 {[%clk 0:00:04]}  Bc2+ {[%clk 0:00:17]} 60. Kc1 {[%clk 0:00:02]}  Qd3 {[%clk 0:00:13]} 0-1


[Site "https://www.chess.com"]